Cogmind - Beta 16 @@@ ROGUE MODE // 2026.01.25 @ 11:32:37 Player: vorsii Result: Destroyed by Y-45 Defender with Beam Rifle Performance ------------- Evolutions (0) 0 Regions Visited (2) 400 Robots Destroyed (39) 195 Value Destroyed (736) 736 Prototype IDs (2) 40 Alien Tech Used (0) 0 Bonus (-22) -22 TOTAL SCORE: 1349 Bonus ------- Friendly Fire -22 Cogmind --------- Core Integrity 0/250 Matter 11/300 Energy 98/100 System Corruption 0% Temperature Cool (9) Movement Rolling (90) Location -10/Subcaves Parts ------- > --- POWER (1) -------- (None) > --- PROPULSION (2) --- Armored Wheel Armored Wheel > --- UTILITY (2) ------ Large Storage Unit Makeshift System Shield > --- WEAPON (2) ------- Rocket Launcher > --- INVENTORY (15) --- Wheel Armored Wheel Structural Scanner Visual Processing Unit Sensor Array Signal Interpreter Terrain Scanner Terrain Scan Processor Transport Network Coupler Assault Rifle Light Cannon Grenade Launcher Rocket Launcher Rocket Launcher Peak State ------------ > --- POWER ------------ Ion Engine > --- PROPULSION ------- Armored Wheel Armored Wheel > --- UTILITY ---------- Large Storage Unit Makeshift System Shield > --- WEAPON ----------- Rocket Launcher Rocket Launcher > --- INVENTORY -------- Wheel Wheel Armored Wheel Structural Scanner Visual Processing Unit Sensor Array Signal Interpreter Terrain Scanner Terrain Scan Processor Transport Network Coupler Assault Rifle Light Cannon Grenade Launcher Rocket Launcher Rocket Launcher [Rating: 16] Favorites ----------- Power Ion Engine Engine Ion Engine Propulsion Armored Wheel Treads Light Treads Wheel Armored Wheel Utility Large Storage Unit Device Structural Scanner Storage Large Storage Unit Hackware Hacking Suite Weapon Assault Rifle Ballistic Gun Assault Rifle Ballistic Cannon Light Cannon Launcher Rocket Launcher Build | -11 -10 -10 ------- Run | Yrd Mat Sub Slots Evolved . | . . . Power . | . . . Propulsion . | . . . Utility . | . . . Weapon . | . . . Parts Attached 26 | 4 21 1 Power 4 | 1 3 . Engine 4 | 1 3 . Core . | . . . Reactor . | . . . Propulsion 8 | . 8 . Treads 2 | . 2 . Leg . | . . . Wheel 6 | . 6 . Hover . | . . . Flight . | . . . Utility 6 | 1 4 1 Device 1 | . 1 . Storage 3 | 1 2 . Processor . | . . . Hackware 2 | . 1 1 Protection . | . . . Artifact . | . . . Weapon 8 | 2 6 . Energy Gun . | . . . Energy Cannon . | . . . Ballistic Gun 2 | 2 . . Ballistic Cannon 2 | . 2 . Launcher 4 | . 4 . Special Weapon . | . . . Impact Weapon . | . . . Slashing Weapon . | . . . Piercing Weapon . | . . . Special Melee Weapon . | . . . Unidentified Prototypes . | . . . Parts Lost 7 | . 4 3 Power 2 | . 1 1 Propulsion 1 | . 1 . Utility 1 | . . 1 Weapon 3 | . 2 1 Highest Loss Streak 4 | . 4 2 To Critical Strikes . | . . . Average Backups 13 | 2 13 14 Power . | . . . Propulsion 2 | 1 2 2 Utility 3 | . 3 7 Weapon 5 | . 6 5 Tool/Special . | . . . Unused Backups 15 | . 8 7 Power 1 | . 1 . Propulsion . | . . . Utility 10 | . 4 6 Weapon 2 | . 1 1 Tool/Special 2 | . 2 . Average Slot Usage (%) 96 | . 96 98 Engine 13 | . 13 13 Wheel 26 | . 26 28 Device 3 | . 3 . Storage 14 | . 14 14 Hackware 9 | . 8 13 Ballistic Gun 11 | . 12 9 Ballistic Cannon 10 | . 10 8 Launcher 5 | . 4 9 Peak Build Rating 16 | 4 14 16 Average Rating 11 | 3 11 14 On Entrance 5 | . 4 13 Avg Prop Armor Cover (%) . | . . . Naked Turns . | . . . Heaviest Build 33 | 12 33 33 Greatest Support 40 | 3 40 24 Greatest Overweight (x) 3 | 3 3 1 Average Overweight (x) 1 | 2 1 . Largest Inventory Capacity 15 | 8 15 15 Average Capacity 14 | 7 14 15 Most Carried 15 | 3 15 15 Average Carried 13 | 2 13 14 Final Capacity 15 | 8 15 15 Final Carried 15 | 3 15 14 Class Distribution -------------------- 100% | Mutant Dominant Class ---------------- Mutant | -10/Materials Mutant | -10/Subcaves Resources | -11 -10 -10 ----------- Run | Yrd Mat Sub Matter Collected 1177 | 240 857 80 Remotely . | . . . Salvage Created 785 | . 722 63 Parts 74 | . 69 5 Haulers Intercepted 2 | . 2 . Recyclers Shooed . | . . . Parts Field Recycled . | . . . Retrieved Matter . | . . . Parts Self-Destructed 7 | . . 7 Prevented . | . . . Parts Restored . | . . . Kills | -11 -10 -10 ------- Run | Yrd Mat Sub Combat Hostiles Destroyed 19 | . 16 3 Guns 4 | . 4 . Cannons 7 | . 7 . AOE 8 | . 5 3 Classes Destroyed 9 | . 8 1 Worker 3 | . 3 . Builder 6 | . 6 . Hauler 2 | . 2 . Recycler 2 | . 2 . Operator 2 | . 2 . Turret 2 | . . 2 Watcher 3 | . 3 . Swarmer 7 | . 6 1 Grunt 12 | . 10 2 Best Kill Streak 4 | . 4 2 Combat Bots Only 3 | . 3 2 Max Kills in Single Turn 2 | . 2 2 Gunslinging . | . . . Exploded 2 | . 2 2 Melee . | . . . Uniques/NPCs Destroyed . | . . . Combat | -11 -10 -10 -------- Run | Yrd Mat Sub Hostile Shots Fired 167 | . 89 78 Missed 56 | . 23 33 Hits 111 | . 66 45 Projectile 111 | . 66 45 Critical Strikes 1 | . 1 . Damage Taken 1337 | . 839 498 Core 262 | . 145 117 Absorbed by Shields . | . . . Regen/Repaired (Parts) 106 | . 106 . Core Remaining (%) 100 | 100 . . Volleys Fired 86 | . 77 9 Largest 2 | . 2 2 Hottest 66 | . 66 66 Shots Fired 169 | . 151 18 Gun 78 | . 74 4 Cannon 53 | . 52 1 Launcher 38 | . 25 13 Special . | . . . Kinetic 131 | . 126 5 Thermal . | . . . Explosive 38 | . 25 13 Electromagnetic . | . . . Robot Hit Streak 8 | . 8 6 Robot Miss Streak 7 | . 7 3 Penetration Max . | . . . Secondary Targets . | . . . Shots Hit Robots 87 | . 79 8 Core Hits 55 | . 42 13 Critical Kills 1 | . 1 . Critical Parts Destroyed 1 | . 1 . Critical Strikes 4 | . 4 . Destroy 2 | . 2 . Blast 2 | . 2 . Melee Attacks . | . . . Impact . | . . . Slashing . | . . . Piercing . | . . . Sneak Attacks . | . . . Combat Hostiles . | . . . Follow-up Attacks . | . . . Damage Inflicted 2397 | . 1964 433 Guns 513 | . 486 27 Cannons 569 | . 569 . Explosions 1315 | . 909 406 Melee . | . . . Ramming . | . . . Kinetic 1082 | . 1055 27 Thermal . | . . . Explosive 1315 | . 909 406 Electromagnetic . | . . . Impact . | . . . Slashing . | . . . Piercing . | . . . Highest Corruption . | . . . Average Corruption . | . . . Corruption Purged . | . . . Corruption Blocked . | . . . Overload Shots . | . . . Overflow Damage 116 | . 116 . Projectiles . | . . . Explosions 116 | . 116 . Melee . | . . . Knockbacks 7 | . 7 . Impact . | . . . Kinetic 7 | . 7 . Secondary . | . . . Self-Inflicted Damage 140 | . 115 25 Shots 5 | . 4 1 Rammed . | . . . Targets Rammed . | . . . Kicked . | . . . Crushed . | . . . Highest Temperature 23 | . 23 . Average Temperature 6 | . 6 . Received Heat Transfer 594 | . 324 270 Siege Activations . | . . . Martial Activations . | . . . Shielding Activations . | . . . Robots Disrupted . | . . . Combat Hostiles . | . . . Robots Corrupted . | . . . Combat Hostiles . | . . . Parts Fried . | . . . Impact Corruptions . | . . . Robots Melted . | . . . Combat Hostiles . | . . . Parts Melted . | . . . Heat Transferred . | . . . Parts Sabotaged . | . . . Parts Stolen . | . . . Parts Stripped . | . . . Power Chain Reactions . | . . . Alert | -11 -10 -10 ------- Run | Yrd Mat Sub Maximum Alert Level 1 | . 1 . Low Security (%) 83 | 100 83 . Level 1 16 | . 16 . Level 2 . | . . . Level 3 . | . . . Level 4 . | . . . Level 5 . | . . . High Security . | . . . Max Security . | . . . Peak Influence 232 | . 232 . Initial . | . . . Average 106 | . 109 . Influence Increases 911 | . 771 140 Destroy 0b10 Robot/C 420 | . 320 100 Destroy 0b10 Robot/NC 90 | . 90 . Destroy Leader 90 | . 80 10 Successful Hack 15 | . 15 . Disable Machine 45 | . 45 . Destroy Structure 191 | . 191 . Lose Combat Pursuer 60 | . 30 30 Influence Decreases 866 | . 567 299 Entered New Map 99 | . . 99 Time Decay 697 | . 527 170 Lost Part 70 | . 40 30 Squads Dispatched 3 | . 3 . Investigation 2 | . 2 . Extermination . | . . . Reinforcement 1 | . 1 . Assault . | . . . Garrison . | . . . Intercept . | . . . Searches Triggered . | . . . Construction Impeded . | . . . Haulers Reinforced . | . . . Active Scanning Responses . | . . . Cargo Convoy Interrupts . | . . . Stealth | -11 -10 -10 --------- Run | Yrd Mat Sub Distress Signals 1 | . 1 . Communications Jammed . | . . . Distress Signals . | . . . Times Spotted 34 | . 27 7 Peak Tracking Total 4 | . 4 3 Tactical Retreats 3 | . 2 1 Traps | -11 -10 -10 ------- Run | Yrd Mat Sub Traps Triggered 3 | . 3 . Indirectly . | . . . Trap Hack Attempts . | . . . Triggered . | . . . Disarmed 1 | . 1 . Reprogrammed . | . . . Reused . | . . . Traps Extracted . | . . . Installed . | . . . Triggered . | . . . Machines | -11 -10 -10 ---------- Run | Yrd Mat Sub Machines Disabled 7 | . 3 4 Max in Single Turn 3 | . 1 3 Machines Repaired . | . . . Machines Dismantled . | . . . Machines Sabotaged . | . . . Overloaded Fab Kills . | . . . Hacking | -11 -10 -10 --------- Run | Yrd Mat Sub Machines Accessed 9 | . 9 . Terminals 7 | . 7 . Fabricators . | . . . Repair Stations 1 | . 1 . Recycling Units 1 | . 1 . Scanalyzers . | . . . Garrison Access . | . . . Total Hacks 24 | . 24 . Successful 18 | . 18 . Failed 6 | . 6 . Catastrophic 1 | . 1 . Database Lockouts . | . . . Manual . | . . . Terminals 15 | . 15 . Fabricators . | . . . Repair Stations 6 | . 6 . Recycling Units 3 | . 3 . Scanalyzers . | . . . Garrison Access . | . . . Terminal Hacks 11 | . 11 . Record 2 | . 2 . Prototype ID Bank 1 | . 1 . Emergency Access Points 1 | . 1 . Alert Level 1 | . 1 . Locate Traps 1 | . 1 . Disarm Traps 1 | . 1 . Dispatch Records 2 | . 2 . Maintenance Status 1 | . 1 . Hauler Manifests 1 | . 1 . Fabricator Hacks . | . . . Repair Station Hacks 6 | . 6 . Scan Component 3 | . 3 . Repair 3 | . 3 . Recycling Unit Hacks 1 | . 1 . Report Inventory 1 | . 1 . Scanalyzer . | . . . Garrison Access Hacks . | . . . Unauthorized Hacks . | . . . Terminals . | . . . Fabricators . | . . . Repair Stations . | . . . Recycling Units . | . . . Scanalyzers . | . . . Garrison Access . | . . . Data Cores Recovered 1 | . 1 . Used 1 | . 1 . Hacking Detections 7 | . 7 . Full Trace Events 2 | . 2 . Feedback Events . | . . . Feedback Blocked . | . . . Robot Schematics Acquired . | . . . Robots Built . | . . . Authchips . | . . . Time . | . . . Total Robot Build Rating . | . . . Part Schematics Acquired . | . . . Parts Built . | . . . Authchips . | . . . Time . | . . . Total Part Build Rating . | . . . Part Studies Acquired . | . . . Parts Repaired 3 | . 3 . Time 78 | . 78 . Parts Recycled . | . . . Recycled Matter . | . . . Retrieved Matter . | . . . Retrieved Components . | . . . Parts Scanalyzed . | . . . Part Schematics Acquired . | . . . Parts Damaged . | . . . Bothacking | -11 -10 -10 ------------ Run | Yrd Mat Sub Used RIF Installer . | . . . Robots Hacked . | . . . Non-combat . | . . . Combat . | . . . Robot Hacks Applied . | . . . Relay Couplers Released . | . . . Fabnet Peak Effective % . | . . . Robots Rewired . | . . . Allies Hacked . | . . . Hacks Repelled . | . . . Allies | -11 -10 -10 -------- Run | Yrd Mat Sub Total Allies . | . . . Largest Group . | . . . Highest-Rated Group . | . . . Highest-Rated Ally . | . . . Total Orders . | . . . Ally Attacks . | . . . Total Damage . | . . . Kills . | . . . Allies Corrupted . | . . . Allies Melted . | . . . Intel | -11 -10 -10 ------- Run | Yrd Mat Sub Active Infowar (turns) 584 | . 584 . Structural 584 | . 584 . Robot Analysis Total . | . . . Derelict Logs Recovered 1 | . . 1 Drone Launches . | . . . Drone Recoveries . | . . . Exploration | -11 -10 -10 ------------- Run | Yrd Mat Sub Turns Passed 2739 | 66 2327 346 Spaces Moved 1808 | 36 1482 290 Core 72 | 36 36 . Treads 5 | . 5 . Legs . | . . . Wheels 1731 | . 1441 290 Hover . | . . . Flight . | . . . Fastest Speed 50 | 50 90 90 Average Speed 108 | 158 107 104 Slowest Speed 200 | 200 200 105 Overloaded Moves . | . . . Propulsion Burnouts . | . . . Robots Hopped . | . . . Potential Cave-ins . | . . . Cave-ins Triggered . | . . . Exploration Rate (%) 39 | 4 100 15 Regions Visited 2 Branch Regions 1 Pre-discovered Areas . | . . . Known Exits Taken . | . . . Unknown Exits Taken 2 | 1 1 . Scrap Searched . | . . . Spaces Dug 29 | . 29 . Terrain Destroyed 257 | . 190 67 Melee . | . . . Projectile . | . . . AOE 257 | . 190 67 Terrain Rammed . | . . . Walls Destroyed . | . . . Machines Disabled . | . . . Actions | -11 -10 -10 --------- Run | Yrd Mat Sub Total 2425 | 46 2067 312 Wait 417 | . 410 7 Move 1806 | 35 1481 290 Hop . | . . . Pick Up 49 | 7 42 . Fast Attach 5 | . 4 1 Attach 16 | 4 12 . Detach . | . . . Swap 24 | . 20 4 Drop 22 | . 21 1 Fire 86 | . 77 9 Melee . | . . . Ram . | . . . Kick . | . . . Crush . | . . . Escape Stasis . | . . . Rewire . | . . . Trap . | . . . Miscellaneous . | . . . Route ------- -11/Scrapyard -10/Materials (discovered 5 exits: [*Mat x3] / [*Min] / [*Sub]) -10/Subcaves (discovered 1 exit: [*Rec]) History --------- Turn | Location | Event 16 | -11/Scrapyard | Discovered new exit (range 15) 67 | -11/Scrapyard | Entered Materials 307 | -10/Materials | Build established: Mutant 424 | -10/Materials | Discovered new exit (range 13) 513 | -10/Materials | Repaired Assault Rifle 967 | -10/Materials | Repaired Structural Scanner 994 | -10/Materials | Repaired Assault Rifle 1638 | -10/Materials | Discovered new exit (range 14) 1742 | -10/Materials | Discovered new exit (range 7) 1938 | -10/Materials | Core integrity fell below 50% 1976 | -10/Materials | Lost 4 parts (1p1n2w) 2058 | -10/Materials | Discovered new exit (range 15) 2235 | -10/Materials | Discovered new exit (range 8) 2394 | -10/Materials | Entered Subcaves 2395 | -10/Subcaves | Approached by a straggling Scientist 2479 | -10/Subcaves | A swath of the cavern ceiling suddenly collapsed 2515 | -10/Subcaves | Shifting Twisted Machinery released Mak. System Shield 2520 | -10/Subcaves | Shifting Twisted Machinery released Sub. Power Source 2627 | -10/Subcaves | Discovered new exit (range 15) 2652 | -10/Subcaves | Learned Materials stockpile data 2694 | -10/Subcaves | Core integrity fell below 20% 2740 | -10/Subcaves | Destroyed by Y-45 Defender with Beam Rifle Last Messages --------------- 02634_ Autobeam Turret destroyed. 02638_ Acquired 3 matter. 02639_ Acquired 5 matter. 02644_ Subatomizers dissect the Sub. Power Source. PY-GMX(c): "I think it's somewhere southwest of here" 02652_ Acquired derelict log, extracted data. Data stored: Materials stockpile data. 02656_ Subatomizers dissect the Sub. Power Source. 02663_ Acquired 1 matter. 02664_ The unstable cave ceiling collapses. 02666_ S-10 Pest destroyed. 02667_ Subatomizers dissect the Sub. Power Source. 02692_ Subatomizers dissect the Lgt. Ion Engine. 02702_ Acquired 19 matter. 02703_ Dropped Wheel. 02704_ Tech Extrapolator violently self-destructs. 02713_ Subatomizers dissect the Lgt. Ion Engine. 02734_ Ion Engine destroyed. 02737_ Rocket Launcher destroyed. 02739_ Subatomizers dissect the Lgt. Ion Engine. Map ----- +----------------------------------------------------+ | ???????????????????????????????????????????????## | | ???????????????????????????????????????????????# | | ???????????????????????????????????????????????? | | ???????????????????????????????????????????????## | | ???????????????????????????????????????????????# | | ???????????????????????????????????????????????# | | ???????????????????????????????????????????????# | | ??????########??????????????????????????????????# | | ?????## # # ##??????????????????????????####### | | ?????# #########????????????####### # ## | | ?????# # ##" ###??####???## | | ?????# " ;#?## ##### | | ????# # ## ## # # | | ????# # < #### | | ?????# * = ###??### | | ?????## ##; * ####??????? | | ??????# ##; Y ####?????????? | | ??????## " ## ##????????????? | | ???????#########; ###?????????????? | | ????????#??????## ##???????????????? | | ?????????????### # # #????????????????? | | ?????????????# #????????????????? | | ?????????????# # # ##????????????????? | | ?????????????## ### # #####????????????? | | ??????????????# ##?## #????????????? | | ??????????????# #??# @ #### #????????????? | | ?????????????? ??## # #??? ?????????????? | | ?????????????? ? # ##????#????????????? | | ????????????? # #?????????????????? | | ????????????? # ? RR" ????????????????? | | ????????????? ## ?? " ??????????????# | | ????????????###????? ## " ""????????????## | | ??????????????????? #?# " "????????????## | | ??????????????????####??## " "???????????## | | ?????????????????????????# """"???????????# | | ????????????????????????? ??????????????## # | | ????????????????????????? "???????????????##? | | ????????????????????????? ## ?????????????????? | | ????????????????????????? ##?""?????????????????? | | ?????????????????????????? ??????????????????????? | | ?????????????????????????? ??????????????????????? | | ?????????????????????????????????????????????????? | | ?????????????????????????????????????????????????? | | ?????????????????????????????????????????????????? | | ?????????????????????????????????????????????????? | | ?????????????????????????????????????????????????? | | ?????????????????????????????????????????????????? | | ?????????????????????????????????????????????????? | | ?????????????????????????????????????????????????? | | ?????????????????????????????????????????????????? | +----------------------------------------------------+ Best States ------------- Heat Dissipation 25 Energy Generation 10 Energy Capacity 250 Matter Stores 300 Matter Capacity 300 Sight Range 16 Terrain Scan Density 10 Evasion (%) 50 Recoil Reduction 2 Offensive Hacking 10 Defensive Hacking 11 Item Schematics ----------------- None Robot Schematics ------------------ None Fabricated ------------ Nothing Repaired ---------- Assault Rifle | 74% | -10/Materials Structural Scanner | 30% | -10/Materials Assault Rifle | 34% | -10/Materials Studied --------- None Alien Tech Used ----------------- None Achievements -------------- None Challenges ------------ None Game ------ Seed BombAlertDetector Manual? 0 Play Time 00:39:01 Cumulative 16.5 hours Start 2026.01.25 @ 10:33:36 End 2026.01.25 @ 11:32:37 Sessions 1 Manual Loads 0 Difficulty Rogue Special Mode None Game No. 24 Rogue 24 Adventurer 0 Explorer 0 Win Type - Total 0 Types 0/0/0/0/0/0/0/0/0/0 Lore% 16 Gallery% 12 Achievement% 14 Wizard Run 0 Options --------- Layout 0 ASCII 0 Keyboard 0 Movement Mouse Keybinds 0 Fullscreen 1 Font 36/Smallcaps Map View 76x50 Zoom Use 0% Tactical HUD 1 Map Filters NONE Filters NONE Steam 1 RUN: b85905bf-2c82-4d0f-8a5a-8b5628dd70f3